[Event "*** SCC Grand Prix: Titled Tuesday Blitz"]
[Site "Chess.com"]
[Date "2020.08.11"]
[Round "3"]
[White "SHIVACalypso"]
[Black "szachuspl"]
[Result "0-1"]
[WhiteElo "2309"]
[BlackElo "2537"]
[TimeControl "180+1"]
[EndTime "10:30:57 PDT"]
[Termination "szachuspl won by checkmate"]

1. Nf3 {[%clk 0:03:00.9]} 1... Nf6 {[%clk 0:02:56.7]} 2. c4 {[%clk 0:03:01.2]}
2... g6 {[%clk 0:02:56.1]} 3. g3 {[%clk 0:03:01.7]} 3... Bg7 {[%clk 0:02:56.6]}
4. Bg2 {[%clk 0:03:02.6]} 4... O-O {[%clk 0:02:57.1]} 5. O-O {[%clk 0:03:03.5]}
5... d6 {[%clk 0:02:57.5]} 6. Nc3 {[%clk 0:03:03.3]} 6... e5 {[%clk 0:02:57.9]}
7. d3 {[%clk 0:03:03.7]} 7... Re8 {[%clk 0:02:58.2]} 8. Rb1 {[%clk 0:03:03.1]}
8... c6 {[%clk 0:02:56.1]} 9. b4 {[%clk 0:02:59.5]} 9... d5 {[%clk 0:02:47.8]}
10. cxd5 {[%clk 0:02:44.8]} 10... cxd5 {[%clk 0:02:47.3]} 11. e4 {[%clk
0:02:45.3]} 11... d4 {[%clk 0:02:41.7]} 12. Ne2 {[%clk 0:02:39.6]} 12... h6
{[%clk 0:02:35.2]} 13. Ne1 {[%clk 0:02:32.8]} 13... Nc6 {[%clk 0:02:33.9]} 14.
f4 {[%clk 0:02:31.5]} 14... Ng4 {[%clk 0:02:31.2]} 15. h3 {[%clk 0:02:27.9]}
15... Ne3 {[%clk 0:02:28.3]} 16. Bxe3 {[%clk 0:02:28.1]} 16... dxe3 {[%clk
0:02:29.2]} 17. Nc2 {[%clk 0:02:23.4]} 17... Qb6 {[%clk 0:02:21.8]} 18. Kh2
{[%clk 0:02:21.8]} 18... Rd8 {[%clk 0:01:55.7]} 19. b5 {[%clk 0:02:15.9]} 19...
Na5 {[%clk 0:01:51.3]} 20. Nc3 {[%clk 0:02:08.6]} 20... exf4 {[%clk 0:01:45.5]}
21. gxf4 {[%clk 0:02:08.1]} 21... Bxc3 {[%clk 0:01:44.8]} 22. Qe2 {[%clk
0:02:06.2]} 22... Bd2 {[%clk 0:01:35.5]} 23. Rf3 {[%clk 0:02:04.1]} 23... Be6
{[%clk 0:01:31.7]} 24. Nxe3 {[%clk 0:02:03.3]} 24... Bxe3 {[%clk 0:01:30.8]} 25.
Rxe3 {[%clk 0:02:04.2]} 25... Qd4 {[%clk 0:01:28.9]} 26. Rf1 {[%clk 0:01:52.4]}
26... Bd7 {[%clk 0:01:20.4]} 27. f5 {[%clk 0:01:52.3]} 27... g5 {[%clk
0:01:14.5]} 28. f6 {[%clk 0:01:49.8]} 28... Qe5+ {[%clk 0:01:10.7]} 29. Kh1
{[%clk 0:01:49.4]} 29... Bxb5 {[%clk 0:01:06.7]} 30. Qh5 {[%clk 0:01:43.5]}
30... Kf8 {[%clk 0:00:47.1]} 31. Qxh6+ {[%clk 0:01:25.6]} 31... Ke8 {[%clk
0:00:47.2]} 32. Rf5 {[%clk 0:01:23.3]} 32... Qa1+ {[%clk 0:00:46.2]} 33. Kh2
{[%clk 0:01:22]} 33... a6 {[%clk 0:00:41.9]} 34. Qg7 {[%clk 0:01:07.2]} 34...
Nc6 {[%clk 0:00:32.5]} 35. Qg8+ {[%clk 0:01:01.7]} 35... Kd7 {[%clk 0:00:32.8]}
36. Qxf7+ {[%clk 0:01:02.3]} 36... Kc8 {[%clk 0:00:33.3]} 37. Qe6+ {[%clk
0:01:01.1]} 37... Kb8 {[%clk 0:00:33.1]} 38. f7 {[%clk 0:00:59.8]} 38... Ka7
{[%clk 0:00:33.4]} 39. e5 {[%clk 0:00:52.4]} 39... Nd4 {[%clk 0:00:31.8]} 40.
Rf6 {[%clk 0:00:49.3]} 40... Nxe6 {[%clk 0:00:31.4]} 41. Rxe6 {[%clk 0:00:46]}
41... Qd4 {[%clk 0:00:31.5]} 42. Re7 {[%clk 0:00:44.5]} 42... Rab8 {[%clk
0:00:31.1]} 43. Rf3 {[%clk 0:00:41.7]} 43... Bc6 {[%clk 0:00:28.2]} 44. f8=Q
{[%clk 0:00:32.8]} 44... Rxf8 {[%clk 0:00:26]} 45. Rxf8 {[%clk 0:00:33.7]} 45...
Bxg2 {[%clk 0:00:25.4]} 46. Rxb8 {[%clk 0:00:26.8]} 46... Kxb8 {[%clk
0:00:26.3]} 47. Kxg2 {[%clk 0:00:27.3]} 47... Qxd3 {[%clk 0:00:26]} 48. e6
{[%clk 0:00:24]} 48... Qd5+ {[%clk 0:00:24.6]} 49. Kf1 {[%clk 0:00:23.7]} 49...
Qf5+ {[%clk 0:00:24.4]} 50. Kg2 {[%clk 0:00:22.8]} 50... Ka7 {[%clk 0:00:24]}
51. Re8 {[%clk 0:00:19.2]} 51... g4 {[%clk 0:00:21.9]} 52. hxg4 {[%clk
0:00:16.2]} 52... Qxg4+ {[%clk 0:00:22.8]} 53. Kf2 {[%clk 0:00:16.1]} 53... Qf5+
{[%clk 0:00:22.9]} 54. Ke3 {[%clk 0:00:15.7]} 54... Qe5+ {[%clk 0:00:20.6]} 55.
Kf2 {[%clk 0:00:16.1]} 55... Qf6+ {[%clk 0:00:20.5]} 56. Ke3 {[%clk 0:00:16.5]}
56... Qh6+ {[%clk 0:00:20.8]} 57. Kd4 {[%clk 0:00:15.8]} 57... Qf6+ {[%clk
0:00:20.7]} 58. Kd5 {[%clk 0:00:15.1]} 58... Kb6 {[%clk 0:00:20.9]} 59. Kd6
{[%clk 0:00:15.1]} 59... a5 {[%clk 0:00:20.8]} 60. Kd7 {[%clk 0:00:13.3]} 60...
Qd4+ {[%clk 0:00:20.6]} 61. Ke7 {[%clk 0:00:13.5]} 61... Kc7 {[%clk 0:00:21]}
62. Rf8 {[%clk 0:00:08]} 62... Qd6+ {[%clk 0:00:18.5]} 63. Kf7 {[%clk
0:00:08.4]} 63... Qf4+ {[%clk 0:00:18.7]} 64. Ke7 {[%clk 0:00:08.6]} 64... Qg5+
{[%clk 0:00:18.9]} 65. Ke8 {[%clk 0:00:06.8]} 65... Kd6 {[%clk 0:00:17.7]} 66.
Rf7 {[%clk 0:00:05.3]} 66... Kxe6 {[%clk 0:00:17.8]} 67. Rxb7 {[%clk 0:00:04.6]}
67... Qg8# {[%clk 0:00:18]} 0-1

[Event "*** SCC Grand Prix: Titled Tuesday Blitz"]
[Site "Chess.com"]
[Date "2020.08.11"]
[Round "3"]
[White "Kaua18"]
[Black "SilviusTiberius"]
[Result "0-1"]
[WhiteElo "2254"]
[BlackElo "2511"]
[TimeControl "180+1"]
[EndTime "10:30:59 PDT"]
[Termination "SilviusTiberius won by resignation"]

1. e4 {[%clk 0:03:00.2]} 1... c5 {[%clk 0:02:59.5]} 2. Nf3 {[%clk 0:03:00.2]}
2... Nc6 {[%clk 0:03:00.1]} 3. d4 {[%clk 0:03:00.7]} 3... cxd4 {[%clk 0:03:01]}
4. Nxd4 {[%clk 0:03:01.6]} 4... Nf6 {[%clk 0:03:01.6]} 5. Nc3 {[%clk 0:03:02]}
5... d6 {[%clk 0:03:02.2]} 6. Bg5 {[%clk 0:03:01.8]} 6... e6 {[%clk 0:03:02.4]}
7. Qd2 {[%clk 0:03:01.2]} 7... Be7 {[%clk 0:03:02.9]} 8. O-O-O {[%clk
0:03:01.1]} 8... Nxd4 {[%clk 0:03:03.4]} 9. Qxd4 {[%clk 0:03:02]} 9... O-O
{[%clk 0:03:04.1]} 10. f3 {[%clk 0:03:02.3]} 10... a6 {[%clk 0:03:03.9]} 11. Kb1
{[%clk 0:03:02.4]} 11... b5 {[%clk 0:03:04.2]} 12. Qd2 {[%clk 0:03:02.6]} 12...
Bb7 {[%clk 0:03:04]} 13. h4 {[%clk 0:03:01.8]} 13... Rc8 {[%clk 0:02:51.7]} 14.
g4 {[%clk 0:03:01]} 14... b4 {[%clk 0:02:50.1]} 15. Ne2 {[%clk 0:03:01.1]} 15...
Nxe4 {[%clk 0:02:47.2]} 16. fxe4 {[%clk 0:02:52.9]} 16... Bxe4 {[%clk
0:02:46.1]} 17. Bxe7 {[%clk 0:02:45.3]} 17... Qxe7 {[%clk 0:02:26.3]} 18. Ng3
{[%clk 0:01:36.4]} 18... Rxc2 {[%clk 0:02:09.4]} 19. Nxe4 {[%clk 0:01:29.4]}
19... Rxd2 {[%clk 0:02:06.6]} 20. Nxd2 {[%clk 0:01:00.8]} 20... a5 {[%clk
0:02:00]} 21. Nc4 {[%clk 0:00:59.5]} 21... a4 {[%clk 0:01:44.8]} 22. Rxd6 {[%clk
0:00:56]} 22... Rc8 {[%clk 0:01:23.3]} 23. Rd1 {[%clk 0:00:41.2]} 23... g6
{[%clk 0:00:50.3]} 24. Bd3 {[%clk 0:00:37.3]} 24... a3 {[%clk 0:00:47.5]} 25. h5
{[%clk 0:00:32.3]} 25... Qf6 {[%clk 0:00:45.4]} 26. Rhf1 {[%clk 0:00:27.4]}
26... Qd4 {[%clk 0:00:39.3]} 27. hxg6 {[%clk 0:00:18.7]} 27... Rxc4 {[%clk
0:00:30.1]} 28. gxf7+ {[%clk 0:00:03.9]} 28... Kf8 {[%clk 0:00:28.6]} 29. Rd2
{[%clk 0:00:03.9]} 29... Rc7 {[%clk 0:00:25.4]} 30. Rfd1 {[%clk 0:00:01.7]}
30... axb2 {[%clk 0:00:21.2]} 31. Bxh7 {[%clk 0:00:01.6]} 31... Rc1+ {[%clk
0:00:20.7]} 32. Rxc1 {[%clk 0:00:02.1]} 32... bxc1=Q+ {[%clk 0:00:15.5]} 33.
Kxc1 {[%clk 0:00:03]} 33... Qa1+ {[%clk 0:00:16.1]} 34. Bb1 {[%clk 0:00:03.6]}
34... Qc3+ {[%clk 0:00:15.9]} 35. Rc2 {[%clk 0:00:03.7]} 35... Qe3+ {[%clk
0:00:16.4]} 36. Kb2 {[%clk 0:00:04.1]} 36... Kxf7 {[%clk 0:00:16.5]} 37. Rc7+
{[%clk 0:00:04.3]} 37... Kf6 {[%clk 0:00:16.8]} 38. Rc2 {[%clk 0:00:01.8]} 38...
Qe5+ {[%clk 0:00:16.8]} 39. Kb3 {[%clk 0:00:02.2]} 39... Qa5 {[%clk 0:00:16.1]}
40. Rc4 {[%clk 0:00:02.5]} 40... Qa3+ {[%clk 0:00:16.3]} 41. Kc2 {[%clk
0:00:03]} 41... e5 {[%clk 0:00:15.5]} 42. Rc6+ {[%clk 0:00:03.2]} 42... Kg5
{[%clk 0:00:15.4]} 43. Kd2 {[%clk 0:00:03.6]} 43... Kxg4 {[%clk 0:00:14.3]} 44.
Rg6+ {[%clk 0:00:03.4]} 44... Kh5 {[%clk 0:00:14.5]} 45. Rd6 {[%clk 0:00:04.1]}
45... Qc3+ {[%clk 0:00:14.1]} 46. Kd1 {[%clk 0:00:04.3]} 46... Kg5 {[%clk
0:00:12.8]} 47. Rd3 {[%clk 0:00:04.7]} 47... Qb2 {[%clk 0:00:12.3]} 48. Bc2
{[%clk 0:00:01.2]} 48... Qxa2 {[%clk 0:00:12.4]} 49. Rb3 {[%clk 0:00:01.9]}
49... Qa5 {[%clk 0:00:11.5]} 50. Kd2 {[%clk 0:00:02.8]} 50... Kf4 {[%clk
0:00:11.9]} 51. Kd3 {[%clk 0:00:03.3]} 51... e4+ {[%clk 0:00:12.2]} 52. Kd2
{[%clk 0:00:04.2]} 52... Qd5+ {[%clk 0:00:11.4]} 53. Kc1 {[%clk 0:00:04.2]}
53... e3 {[%clk 0:00:11.8]} 54. Rxb4+ {[%clk 0:00:04.4]} 54... Kg3 {[%clk
0:00:12.3]} 55. Rb8 {[%clk 0:00:04.2]} 55... Qe5 {[%clk 0:00:11.6]} 56. Rg8+
{[%clk 0:00:02.3]} 56... Kf2 {[%clk 0:00:12]} 57. Rf8+ {[%clk 0:00:02.6]} 57...
Ke1 {[%clk 0:00:12.5]} 58. Rg8 {[%clk 0:00:01.8]} 58... Qa1+ {[%clk 0:00:11.6]}
59. Bb1 {[%clk 0:00:02]} 59... Qa3+ {[%clk 0:00:12.2]} 60. Kc2 {[%clk
0:00:02.2]} 60... Qa4+ {[%clk 0:00:12.8]} 61. Kc1 {[%clk 0:00:02.5]} 61... Qa3+
{[%clk 0:00:13]} 62. Kc2 {[%clk 0:00:02.8]} 62... Qc5+ {[%clk 0:00:13.1]} 63.
Kb2 {[%clk 0:00:03.1]} 63... Qb4+ {[%clk 0:00:13]} 64. Ka1 {[%clk 0:00:02.9]}
64... Qc3+ {[%clk 0:00:13]} 65. Ka2 {[%clk 0:00:03.4]} 65... Qc4+ {[%clk
0:00:13.4]} 66. Ka1 {[%clk 0:00:04]} 66... Qxg8 {[%clk 0:00:14]} 0-1

[Event "*** SCC Grand Prix: Titled Tuesday Blitz"]
[Site "Chess.com"]
[Date "2020.08.11"]
[Round "3"]
[White "Vesper2018"]
[Black "Tactictic"]
[Result "1/2-1/2"]
[WhiteElo "2570"]
[BlackElo "2362"]
[TimeControl "180+1"]
[EndTime "10:31:00 PDT"]
[Termination "Game drawn by stalemate"]

1. e4 {[%clk 0:03:00.9]} 1... c5 {[%clk 0:02:59.8]} 2. Nc3 {[%clk 0:02:59.9]}
2... Nc6 {[%clk 0:02:59.6]} 3. Bb5 {[%clk 0:02:59.6]} 3... Nd4 {[%clk
0:02:59.4]} 4. Bc4 {[%clk 0:02:57.9]} 4... e6 {[%clk 0:02:40.7]} 5. Nge2 {[%clk
0:02:55.8]} 5... g6 {[%clk 0:02:31.3]} 6. O-O {[%clk 0:02:46.7]} 6... Bg7 {[%clk
0:02:30.8]} 7. Nxd4 {[%clk 0:02:40.7]} 7... cxd4 {[%clk 0:02:30]} 8. Ne2 {[%clk
0:02:38.2]} 8... Ne7 {[%clk 0:02:25.7]} 9. c3 {[%clk 0:02:34.2]} 9... dxc3
{[%clk 0:02:20.8]} 10. bxc3 {[%clk 0:02:32.5]} 10... O-O {[%clk 0:02:17.8]} 11.
Ba3 {[%clk 0:02:23.5]} 11... a6 {[%clk 0:02:11.3]} 12. d4 {[%clk 0:02:20.5]}
12... b5 {[%clk 0:02:04.1]} 13. Bb3 {[%clk 0:02:17.3]} 13... Bb7 {[%clk
0:02:03.4]} 14. Qd3 {[%clk 0:02:06.3]} 14... Re8 {[%clk 0:01:52.8]} 15. Rac1
{[%clk 0:01:59.6]} 15... d5 {[%clk 0:01:52.3]} 16. e5 {[%clk 0:01:53]} 16... Nc6
{[%clk 0:01:45.6]} 17. f4 {[%clk 0:01:45.1]} 17... Rc8 {[%clk 0:01:35.3]} 18. g4
{[%clk 0:01:43.2]} 18... Na5 {[%clk 0:01:31.9]} 19. f5 {[%clk 0:01:33.5]} 19...
Qg5 {[%clk 0:01:13.2]} 20. Qg3 {[%clk 0:01:27.7]} 20... Bh6 {[%clk 0:00:58.6]}
21. fxe6 {[%clk 0:01:17.8]} 21... fxe6 {[%clk 0:00:50.5]} 22. Nf4 {[%clk
0:01:13.3]} 22... Nc4 {[%clk 0:00:27.6]} 23. h4 {[%clk 0:01:12.6]} 23... Qd8
{[%clk 0:00:24.3]} 24. Bxc4 {[%clk 0:01:11.5]} 24... Rxc4 {[%clk 0:00:23.4]} 25.
g5 {[%clk 0:01:05.3]} 25... Bg7 {[%clk 0:00:21.9]} 26. h5 {[%clk 0:01:00.6]}
26... Qa5 {[%clk 0:00:16.8]} 27. Bd6 {[%clk 0:00:47.5]} 27... Qxa2 {[%clk
0:00:14.3]} 28. hxg6 {[%clk 0:00:46.7]} 28... hxg6 {[%clk 0:00:12.4]} 29. Nxg6
{[%clk 0:00:46.6]} 29... Qd2 {[%clk 0:00:11.3]} 30. Rcd1 {[%clk 0:00:28.3]}
30... Qc2 {[%clk 0:00:08.9]} 31. Ne7+ {[%clk 0:00:22.3]} 31... Rxe7 {[%clk
0:00:09.5]} 32. Bxe7 {[%clk 0:00:22.8]} 32... Rxc3 {[%clk 0:00:10.2]} 33. Qf2
{[%clk 0:00:23.1]} 33... Qg6 {[%clk 0:00:09.5]} 34. Rc1 {[%clk 0:00:19.2]} 34...
Rh3 {[%clk 0:00:08.5]} 35. Rc7 {[%clk 0:00:15.4]} 35... Qe4 {[%clk 0:00:08.4]}
36. Qg2 {[%clk 0:00:09.2]} 36... Qe3+ {[%clk 0:00:08.7]} 37. Qf2 {[%clk
0:00:06.1]} 37... Qe4 {[%clk 0:00:08.7]} 38. Qf7+ {[%clk 0:00:04.8]} 38... Kh7
{[%clk 0:00:08.9]} 39. g6+ {[%clk 0:00:05.1]} 39... Kh6 {[%clk 0:00:08.6]} 40.
Qf4+ {[%clk 0:00:04.9]} 40... Qxf4 {[%clk 0:00:08.1]} 41. Rxf4 {[%clk
0:00:05.5]} 41... Ba8 {[%clk 0:00:07.4]} 42. Bf6 {[%clk 0:00:05]} 42... Bxf6
{[%clk 0:00:07.3]} 43. Rxf6 {[%clk 0:00:05.1]} 43... Rg3+ {[%clk 0:00:07]} 44.
Kf2 {[%clk 0:00:05.6]} 44... Rxg6 {[%clk 0:00:07.3]} 45. Rxg6+ {[%clk
0:00:05.7]} 45... Kxg6 {[%clk 0:00:08.2]} 46. Ke3 {[%clk 0:00:05]} 46... Kf5
{[%clk 0:00:08.2]} 47. Kf3 {[%clk 0:00:05.4]} 47... b4 {[%clk 0:00:08.1]} 48.
Ra7 {[%clk 0:00:04.6]} 48... Bc6 {[%clk 0:00:07.7]} 49. Rxa6 {[%clk 0:00:04.4]}
49... Bb5 {[%clk 0:00:08.3]} 50. Rb6 {[%clk 0:00:04.9]} 50... Bc4 {[%clk
0:00:08.4]} 51. Rxb4 {[%clk 0:00:05.1]} 51... Kg6 {[%clk 0:00:08.8]} 52. Rb6
{[%clk 0:00:04.2]} 52... Kf5 {[%clk 0:00:09.3]} 53. Rb7 {[%clk 0:00:04.3]} 53...
Kg6 {[%clk 0:00:07.7]} 54. Rb8 {[%clk 0:00:04.6]} 54... Bd3 {[%clk 0:00:07.8]}
55. Rf8 {[%clk 0:00:04.5]} 55... Bf5 {[%clk 0:00:07.4]} 56. Rf6+ {[%clk
0:00:04.8]} 56... Kg7 {[%clk 0:00:07.8]} 57. Kf4 {[%clk 0:00:05.1]} 57... Bh3
{[%clk 0:00:06.5]} 58. Kg3 {[%clk 0:00:05.3]} 58... Bf5 {[%clk 0:00:06.6]} 59.
Rxf5 {[%clk 0:00:04.7]} 59... exf5 {[%clk 0:00:07.5]} 60. Kf4 {[%clk 0:00:05.2]}
60... Kg6 {[%clk 0:00:08.2]} 61. e6 {[%clk 0:00:03.4]} 61... Kf6 {[%clk
0:00:08.3]} 62. e7 {[%clk 0:00:04]} 62... Kxe7 {[%clk 0:00:08.5]} 63. Kxf5
{[%clk 0:00:04.5]} 63... Kd6 {[%clk 0:00:08.4]} 64. Kf6 {[%clk 0:00:05]} 64...
Kd7 {[%clk 0:00:05]} 65. Ke5 {[%clk 0:00:05.4]} 65... Ke7 {[%clk 0:00:05.7]} 66.
Kxd5 {[%clk 0:00:05.5]} 66... Kd7 {[%clk 0:00:06.4]} 67. Kc5 {[%clk 0:00:06]}
67... Kc7 {[%clk 0:00:06.7]} 68. d5 {[%clk 0:00:06.4]} 68... Kd7 {[%clk
0:00:07.2]} 69. d6 {[%clk 0:00:06.6]} 69... Kd8 {[%clk 0:00:07.6]} 70. Kd5
{[%clk 0:00:06.8]} 70... Kd7 {[%clk 0:00:08]} 71. Kc5 {[%clk 0:00:07.1]} 71...
Kd8 {[%clk 0:00:08.6]} 72. Kc6 {[%clk 0:00:07.7]} 72... Kc8 {[%clk 0:00:09.1]}
73. d7+ {[%clk 0:00:08.4]} 73... Kd8 {[%clk 0:00:09.7]} 74. Kd6 {[%clk
0:00:09.1]} 1/2-1/2

[Event "*** SCC Grand Prix: Titled Tuesday Blitz"]
[Site "Chess.com"]
[Date "2020.08.11"]
[Round "3"]
[White "Donskov_AN"]
[Black "AJSC02"]
[Result "1-0"]
[WhiteElo "2518"]
[BlackElo "2263"]
[TimeControl "180+1"]
[EndTime "10:31:04 PDT"]
[Termination "Donskov_AN won by checkmate"]

1. e4 {[%clk 0:02:35.2]} 1... c5 {[%clk 0:02:59.8]} 2. Nf3 {[%clk 0:02:34]} 2...
Nc6 {[%clk 0:02:59.9]} 3. d4 {[%clk 0:02:34.4]} 3... cxd4 {[%clk 0:03:00.8]} 4.
Nxd4 {[%clk 0:02:34.5]} 4... Nf6 {[%clk 0:03:01.1]} 5. Nc3 {[%clk 0:02:34.8]}
5... e5 {[%clk 0:03:01.5]} 6. Ndb5 {[%clk 0:02:34.9]} 6... d6 {[%clk 0:03:01.8]}
7. Bg5 {[%clk 0:02:35.6]} 7... a6 {[%clk 0:03:02.2]} 8. Na3 {[%clk 0:02:36.3]}
8... b5 {[%clk 0:03:02.7]} 9. Nd5 {[%clk 0:02:37]} 9... Be7 {[%clk 0:03:03.1]}
10. Bxf6 {[%clk 0:02:37.7]} 10... Bxf6 {[%clk 0:03:04]} 11. c4 {[%clk
0:02:38.4]} 11... b4 {[%clk 0:03:03.4]} 12. Nc2 {[%clk 0:02:38.9]} 12... O-O
{[%clk 0:03:03.5]} 13. g3 {[%clk 0:02:39.4]} 13... a5 {[%clk 0:03:03.2]} 14. Bg2
{[%clk 0:02:39.7]} 14... Bg5 {[%clk 0:02:52.1]} 15. O-O {[%clk 0:02:39.8]} 15...
Nb8 {[%clk 0:02:48]} 16. b3 {[%clk 0:02:33.9]} 16... Na6 {[%clk 0:02:47.7]} 17.
Qe2 {[%clk 0:02:26.8]} 17... Nc5 {[%clk 0:02:47.3]} 18. Rad1 {[%clk 0:02:24.3]}
18... Be6 {[%clk 0:02:41.7]} 19. f4 {[%clk 0:02:21.1]} 19... exf4 {[%clk
0:02:31.9]} 20. gxf4 {[%clk 0:02:18.3]} 20... Bh6 {[%clk 0:02:26.2]} 21. Nd4
{[%clk 0:02:16.4]} 21... Bxd5 {[%clk 0:02:25]} 22. cxd5 {[%clk 0:02:15.3]} 22...
Qh4 {[%clk 0:02:17.8]} 23. Nf5 {[%clk 0:02:11.2]} 23... Qf6 {[%clk 0:02:08.7]}
24. Qg4 {[%clk 0:01:19.4]} 24... Rfe8 {[%clk 0:01:48.7]} 25. Rfe1 {[%clk
0:01:18.4]} 25... Rad8 {[%clk 0:01:34]} 26. e5 {[%clk 0:01:15.5]} 26... dxe5
{[%clk 0:01:32.5]} 27. fxe5 {[%clk 0:01:14.7]} 27... Qg5 {[%clk 0:01:22.1]} 28.
Qxg5 {[%clk 0:00:54.4]} 28... Bxg5 {[%clk 0:01:23]} 29. Nd6 {[%clk 0:00:54.9]}
29... Re7 {[%clk 0:01:16]} 30. Nc4 {[%clk 0:00:54]} 30... Bh4 {[%clk 0:01:11.1]}
31. Re3 {[%clk 0:00:51.7]} 31... Ra7 {[%clk 0:01:06.8]} 32. Rd4 {[%clk
0:00:31.9]} 32... Bg5 {[%clk 0:01:05.9]} 33. Rg3 {[%clk 0:00:30.7]} 33... h6
{[%clk 0:00:56.8]} 34. d6 {[%clk 0:00:29.8]} 34... Ne6 {[%clk 0:00:54.9]} 35.
Rd1 {[%clk 0:00:28.4]} 35... Bf4 {[%clk 0:00:54.1]} 36. Rf3 {[%clk 0:00:27.3]}
36... f6 {[%clk 0:00:36.5]} 37. exf6 {[%clk 0:00:25.2]} 37... gxf6 {[%clk
0:00:36.2]} 38. Bh3 {[%clk 0:00:24.2]} 38... Ng5 {[%clk 0:00:34.3]} 39. Rfd3
{[%clk 0:00:24.4]} 39... Nxh3+ {[%clk 0:00:32.5]} 40. Rxh3 {[%clk 0:00:25.3]}
40... Rad7 {[%clk 0:00:31.9]} 41. Rhd3 {[%clk 0:00:25.2]} 41... Be5 {[%clk
0:00:20.4]} 42. Kg2 {[%clk 0:00:24.5]} 42... Kh7 {[%clk 0:00:19.2]} 43. h3
{[%clk 0:00:23.8]} 43... Rg8+ {[%clk 0:00:18.4]} 44. Kf3 {[%clk 0:00:23.1]}
44... Rg3+ {[%clk 0:00:17.9]} 45. Ke4 {[%clk 0:00:23.6]} 45... Rxd3 {[%clk
0:00:14.5]} 46. Rxd3 {[%clk 0:00:24.5]} 46... Kg6 {[%clk 0:00:14.2]} 47. Kd5
{[%clk 0:00:23.9]} 47... Kf5 {[%clk 0:00:10.9]} 48. Nxe5 {[%clk 0:00:20.4]}
48... fxe5 {[%clk 0:00:10.3]} 49. Rf3+ {[%clk 0:00:21]} 49... Kg5 {[%clk
0:00:08.9]} 50. Ke6 {[%clk 0:00:21.1]} 50... Rd8 {[%clk 0:00:05.5]} 51. Ke7
{[%clk 0:00:21.1]} 51... e4 {[%clk 0:00:04.9]} 52. Rg3+ {[%clk 0:00:17.7]} 52...
Kf4 {[%clk 0:00:04.7]} 53. Rg4+ {[%clk 0:00:17.5]} 53... Ke5 {[%clk 0:00:03.7]}
54. Kxd8 {[%clk 0:00:16.7]} 54... Kxd6 {[%clk 0:00:03.4]} 55. Rxe4 {[%clk
0:00:16.7]} 55... Kd5 {[%clk 0:00:03.6]} 56. Rh4 {[%clk 0:00:16.8]} 56... a4
{[%clk 0:00:03]} 57. Rxh6 {[%clk 0:00:16.9]} 57... axb3 {[%clk 0:00:02.4]} 58.
axb3 {[%clk 0:00:17.8]} 58... Kd4 {[%clk 0:00:03.3]} 59. Rc6 {[%clk 0:00:18]}
59... Kd3 {[%clk 0:00:02.6]} 60. Rc4 {[%clk 0:00:18.5]} 60... Ke3 {[%clk
0:00:01.3]} 61. h4 {[%clk 0:00:19.4]} 61... Kd2 {[%clk 0:00:02]} 62. h5 {[%clk
0:00:20.3]} 62... Kd3 {[%clk 0:00:02.9]} 63. h6 {[%clk 0:00:21.2]} 63... Ke3
{[%clk 0:00:03.8]} 64. h7 {[%clk 0:00:22.1]} 64... Kd3 {[%clk 0:00:04.7]} 65.
h8=Q {[%clk 0:00:21.8]} 65... Ke2 {[%clk 0:00:05.6]} 66. Qh2+ {[%clk 0:00:21.4]}
66... Kd1 {[%clk 0:00:06.5]} 67. Rd4+ {[%clk 0:00:21.3]} 67... Ke1 {[%clk
0:00:07.1]} 68. Qd2+ {[%clk 0:00:20.2]} 68... Kf1 {[%clk 0:00:07.1]} 69. Rf4+
{[%clk 0:00:20.8]} 69... Kg1 {[%clk 0:00:07]} 70. Qf2+ {[%clk 0:00:21.4]} 70...
Kh1 {[%clk 0:00:06.9]} 71. Rh4# {[%clk 0:00:22.3]} 1-0